[Event "Late-Titled-Tuesday-Blitz-February-06-2024"]
[Site "Chess.com"]
[Date "2024.02.06"]
[Round "5"]
[White "yobdc"]
[Black "DinaBelenkaya"]
[Result "1-0"]
[WhiteElo "2612"]
[BlackElo "2430"]
[TimeControl "180+1"]
[EndTime "14:56:08 PST"]
[Termination "yobdc won on time"]

1. c4 {[%clk 0:02:51.8]} 1... e5 {[%clk 0:02:58.7]} 2. Nc3 {[%clk 0:02:50.5]}
2... Nf6 {[%clk 0:02:58.1]} 3. Nf3 {[%clk 0:02:50.7]} 3... Nc6 {[%clk
0:02:57.5]} 4. g3 {[%clk 0:02:50.8]} 4... Bc5 {[%clk 0:02:49.2]} 5. Bg2 {[%clk
0:02:49.8]} 5... O-O {[%clk 0:02:44.2]} 6. d3 {[%clk 0:02:49.3]} 6... d6 {[%clk
0:02:39.9]} 7. O-O {[%clk 0:02:47.6]} 7... a5 {[%clk 0:02:35.3]} 8. Bg5 {[%clk
0:02:43.2]} 8... h6 {[%clk 0:02:35.1]} 9. Bxf6 {[%clk 0:02:43.4]} 9... Qxf6
{[%clk 0:02:35.9]} 10. Nd5 {[%clk 0:02:36.4]} 10... Qd8 {[%clk 0:02:35.7]} 11.
Nd2 {[%clk 0:02:36.7]} 11... f5 {[%clk 0:02:33.3]} 12. e3 {[%clk 0:02:34.8]}
12... Ne7 {[%clk 0:02:27.7]} 13. a3 {[%clk 0:02:22.7]} 13... c6 {[%clk
0:02:25.2]} 14. Nxe7+ {[%clk 0:02:19.2]} 14... Qxe7 {[%clk 0:02:26.1]} 15. Qe2
{[%clk 0:02:08.8]} 15... a4 {[%clk 0:02:25.9]} 16. Kh1 {[%clk 0:02:06]} 16...
Bd7 {[%clk 0:02:19.4]} 17. Rae1 {[%clk 0:02:04]} 17... g5 {[%clk 0:02:05.7]} 18.
f4 {[%clk 0:01:54.6]} 18... Rae8 {[%clk 0:01:59.3]} 19. Qd1 {[%clk 0:01:50.7]}
19... Qg7 {[%clk 0:01:56.3]} 20. Qc2 {[%clk 0:01:16.8]} 20... exf4 {[%clk
0:01:47.8]} 21. exf4 {[%clk 0:01:16.1]} 21... Rxe1 {[%clk 0:01:47.7]} 22. Rxe1
{[%clk 0:01:17]} 22... Bd4 {[%clk 0:01:38.7]} 23. fxg5 {[%clk 0:00:55.2]} 23...
hxg5 {[%clk 0:01:37.6]} 24. Nf3 {[%clk 0:00:55.5]} 24... Bf6 {[%clk 0:01:24.5]}
25. Qxa4 {[%clk 0:00:38.9]} 25... Bxb2 {[%clk 0:01:21.3]} 26. Qb3 {[%clk
0:00:37.8]} 26... Bc3 {[%clk 0:01:19.2]} 27. Rc1 {[%clk 0:00:35.6]} 27... g4
{[%clk 0:00:58.3]} 28. Ng1 {[%clk 0:00:19.2]} 28... Be5 {[%clk 0:00:57.1]} 29.
Ne2 {[%clk 0:00:18.9]} 29... Bc8 {[%clk 0:00:48.7]} 30. c5+ {[%clk 0:00:17.4]}
30... d5 {[%clk 0:00:47.4]} 31. Rf1 {[%clk 0:00:17.1]} 31... Qh7 {[%clk
0:00:41.3]} 32. Nf4 {[%clk 0:00:16.9]} 32... Kh8 {[%clk 0:00:36.1]} 33. Qb4
{[%clk 0:00:13.2]} 33... Qg7 {[%clk 0:00:34.3]} 34. Re1 {[%clk 0:00:13.2]} 34...
Bc3 {[%clk 0:00:32.1]} 35. Qb1 {[%clk 0:00:12.6]} 35... Bxe1 {[%clk 0:00:32.2]}
36. Qxe1 {[%clk 0:00:13.5]} 36... Qf7 {[%clk 0:00:30.8]} 37. h3 {[%clk
0:00:12.3]} 37... Re8 {[%clk 0:00:30.2]} 38. Qd1 {[%clk 0:00:12.4]} 38... Re3
{[%clk 0:00:28.1]} 39. Kh2 {[%clk 0:00:12.2]} 39... d4 {[%clk 0:00:21]} 40. Qa1
{[%clk 0:00:11.6]} 40... Qg7 {[%clk 0:00:19.3]} 41. h4 {[%clk 0:00:10.6]} 41...
Kh7 {[%clk 0:00:17]} 42. Qb2 {[%clk 0:00:10.9]} 42... Qe5 {[%clk 0:00:16]} 43.
h5 {[%clk 0:00:10.9]} 43... Kh6 {[%clk 0:00:14.8]} 44. Qd2 {[%clk 0:00:10.5]}
44... Be6 {[%clk 0:00:13.2]} 45. a4 {[%clk 0:00:10.1]} 45... Bd5 {[%clk
0:00:13.1]} 46. Bxd5 {[%clk 0:00:07.2]} 46... cxd5 {[%clk 0:00:14]} 47. a5
{[%clk 0:00:06.5]} 47... Kh7 {[%clk 0:00:11]} 48. c6 {[%clk 0:00:06.8]} 48...
bxc6 {[%clk 0:00:10.3]} 49. a6 {[%clk 0:00:07.3]} 49... Qc7 {[%clk 0:00:08.4]}
50. Qb2 {[%clk 0:00:06.7]} 50... Re7 {[%clk 0:00:06.4]} 51. Qxd4 {[%clk
0:00:06]} 51... Qa7 {[%clk 0:00:06.3]} 52. Qf6 {[%clk 0:00:05.1]} 52... Qf2+
{[%clk 0:00:06.3]} 53. Ng2 {[%clk 0:00:04.6]} 53... Re2 {[%clk 0:00:02.3]} 54.
Qg6+ {[%clk 0:00:04.9]} 54... Kh8 {[%clk 0:00:02.8]} 55. Qh6+ {[%clk 0:00:04.7]}
55... Kg8 {[%clk 0:00:03.1]} 56. Qg6+ {[%clk 0:00:05]} 56... Kf8 {[%clk
0:00:03.7]} 57. Qf6+ {[%clk 0:00:05.5]} 57... Ke8 {[%clk 0:00:04]} 58. Qxc6+
{[%clk 0:00:05.7]} 58... Ke7 {[%clk 0:00:03.6]} 59. Qxd5 {[%clk 0:00:05.7]}
59... Rd2 {[%clk 0:00:02.7]} 60. Qb7+ {[%clk 0:00:04.6]} 60... Ke6 {[%clk
0:00:02.5]} 61. a7 {[%clk 0:00:05.1]} 61... Rd1 {[%clk 0:00:01.6]} 62. Qb3+
{[%clk 0:00:04.6]} 1-0

[Event "Late-Titled-Tuesday-Blitz-February-06-2024"]
[Site "Chess.com"]
[Date "2024.02.06"]
[Round "5"]
[White "Zavgorodniy_Sergiy"]
[Black "The_Straightforward_Rook"]
[Result "1/2-1/2"]
[WhiteElo "2593"]
[BlackElo "2426"]
[TimeControl "180+1"]
[EndTime "14:56:09 PST"]
[Termination "Game drawn - insufficient material"]

1. d4 {[%clk 0:03:00.9]} 1... d5 {[%clk 0:02:59.7]} 2. c4 {[%clk 0:03:00.9]}
2... c6 {[%clk 0:03:00.1]} 3. e3 {[%clk 0:03:00.7]} 3... Nf6 {[%clk 0:02:59.9]}
4. Bd3 {[%clk 0:03:00.8]} 4... e6 {[%clk 0:02:55.9]} 5. Nd2 {[%clk 0:03:00]}
5... Nbd7 {[%clk 0:02:54.8]} 6. Ngf3 {[%clk 0:02:59.7]} 6... Bd6 {[%clk
0:02:49.3]} 7. O-O {[%clk 0:02:59.3]} 7... O-O {[%clk 0:02:48.8]} 8. e4 {[%clk
0:02:58.8]} 8... dxe4 {[%clk 0:02:45.1]} 9. Nxe4 {[%clk 0:02:59.7]} 9... Nxe4
{[%clk 0:02:44.7]} 10. Bxe4 {[%clk 0:03:00.6]} 10... Re8 {[%clk 0:02:22.2]} 11.
b3 {[%clk 0:02:59.7]} 11... Bf8 {[%clk 0:02:19.9]} 12. Bb2 {[%clk 0:02:58.5]}
12... g6 {[%clk 0:02:20.2]} 13. Bc2 {[%clk 0:02:57.3]} 13... Bg7 {[%clk
0:02:19.5]} 14. Re1 {[%clk 0:02:57.7]} 14... b6 {[%clk 0:02:18.2]} 15. Qe2
{[%clk 0:02:57.9]} 15... Bb7 {[%clk 0:02:18.4]} 16. Rad1 {[%clk 0:02:58.2]}
16... Qe7 {[%clk 0:02:16.8]} 17. Ne5 {[%clk 0:02:58.3]} 17... Nxe5 {[%clk
0:02:16.3]} 18. dxe5 {[%clk 0:02:59.2]} 18... Red8 {[%clk 0:02:13.6]} 19. Be4
{[%clk 0:02:57.8]} 19... Rxd1 {[%clk 0:02:11.9]} 20. Rxd1 {[%clk 0:02:57.8]}
20... Rd8 {[%clk 0:02:12.7]} 21. Rd3 {[%clk 0:02:55.5]} 21... Rd7 {[%clk
0:02:07.1]} 22. Qd1 {[%clk 0:02:54.5]} 22... Rxd3 {[%clk 0:02:03.4]} 23. Qxd3
{[%clk 0:02:55.4]} 23... Bf8 {[%clk 0:01:59.7]} 24. Kf1 {[%clk 0:02:49.5]} 24...
c5 {[%clk 0:01:57.7]} 25. g3 {[%clk 0:02:45.8]} 25... Bxe4 {[%clk 0:01:55.2]}
26. Qxe4 {[%clk 0:02:46.7]} 26... Qd7 {[%clk 0:01:55.7]} 27. Ke2 {[%clk
0:02:46.1]} 27... h5 {[%clk 0:01:51.8]} 28. Qd3 {[%clk 0:02:44.6]} 28... Qxd3+
{[%clk 0:01:50.5]} 29. Kxd3 {[%clk 0:02:45.5]} 29... Bg7 {[%clk 0:01:49.3]} 30.
Ke4 {[%clk 0:02:45.4]} 30... Kf8 {[%clk 0:01:49.5]} 31. Bc1 {[%clk 0:02:45.6]}
31... Ke7 {[%clk 0:01:47.3]} 32. Bg5+ {[%clk 0:02:45.5]} 32... Kd7 {[%clk
0:01:47.8]} 33. f3 {[%clk 0:02:45]} 33... Bf8 {[%clk 0:01:47.2]} 34. g4 {[%clk
0:02:44.8]} 34... a6 {[%clk 0:01:32.6]} 35. a4 {[%clk 0:02:44]} 35... Kc6 {[%clk
0:01:29]} 36. Kf4 {[%clk 0:02:37.9]} 36... b5 {[%clk 0:01:28.3]} 37. axb5+
{[%clk 0:02:38.8]} 37... axb5 {[%clk 0:01:29.2]} 38. gxh5 {[%clk 0:02:32.1]}
38... gxh5 {[%clk 0:01:28.6]} 39. Kg3 {[%clk 0:02:31.7]} 39... bxc4 {[%clk
0:01:25.8]} 40. bxc4 {[%clk 0:02:32.6]} 40... Kb6 {[%clk 0:01:26.5]} 41. Kh4
{[%clk 0:02:28.2]} 41... Ka5 {[%clk 0:01:26.8]} 42. Kxh5 {[%clk 0:02:25.7]}
42... Kb4 {[%clk 0:01:27.4]} 43. h4 {[%clk 0:02:19.5]} 43... Kxc4 {[%clk
0:01:27.6]} 44. Kg4 {[%clk 0:02:13.8]} 44... Kd4 {[%clk 0:01:24.5]} 45. Bf4
{[%clk 0:01:26.8]} 45... c4 {[%clk 0:01:23]} 46. h5 {[%clk 0:01:26.9]} 46... c3
{[%clk 0:01:23.3]} 47. h6 {[%clk 0:01:27.2]} 47... c2 {[%clk 0:01:20.3]} 48. h7
{[%clk 0:01:27.1]} 48... Bg7 {[%clk 0:01:20.4]} 49. Bc1 {[%clk 0:00:45.6]} 49...
Kd3 {[%clk 0:01:13.1]} 50. f4 {[%clk 0:00:42.8]} 50... f6 {[%clk 0:00:49.8]} 51.
exf6 {[%clk 0:00:32.2]} 51... Bxf6 {[%clk 0:00:49.7]} 52. Kh5 {[%clk 0:00:29.4]}
52... Ke4 {[%clk 0:00:41.6]} 53. Kg6 {[%clk 0:00:29.2]} 53... Bh8 {[%clk
0:00:35.6]} 54. Kf7 {[%clk 0:00:09.9]} 54... Kf5 {[%clk 0:00:28.6]} 55. Kg8
{[%clk 0:00:07.9]} 55... Bd4 {[%clk 0:00:26.4]} 56. h8=Q {[%clk 0:00:07.9]}
56... Bxh8 {[%clk 0:00:26.1]} 57. Kxh8 {[%clk 0:00:08.8]} 57... e5 {[%clk
0:00:26.6]} 58. fxe5 {[%clk 0:00:09.2]} 58... Kxe5 {[%clk 0:00:27.5]} 59. Kg7
{[%clk 0:00:10.1]} 59... Ke4 {[%clk 0:00:28.1]} 60. Kf6 {[%clk 0:00:10.5]} 60...
Kd3 {[%clk 0:00:29]} 61. Ke5 {[%clk 0:00:10.7]} 61... Ke2 {[%clk 0:00:29.9]} 62.
Kd4 {[%clk 0:00:10.9]} 62... Kd1 {[%clk 0:00:30.8]} 63. Bb2 {[%clk 0:00:11]}
63... Kd2 {[%clk 0:00:27.1]} 64. Kc4 {[%clk 0:00:10.7]} 64... c1=Q+ {[%clk
0:00:25.8]} 65. Bxc1+ {[%clk 0:00:10.5]} 1/2-1/2

[Event "Late-Titled-Tuesday-Blitz-February-06-2024"]
[Site "Chess.com"]
[Date "2024.02.06"]
[Round "5"]
[White "GeorgiosSouleidis"]
[Black "protectiago"]
[Result "1-0"]
[WhiteElo "2694"]
[BlackElo "2105"]
[TimeControl "180+1"]
[EndTime "14:56:10 PST"]
[Termination "GeorgiosSouleidis won on time"]

1. e4 {[%clk 0:03:00.9]} 1... e5 {[%clk 0:02:58.9]} 2. Nf3 {[%clk 0:03:00.5]}
2... Nc6 {[%clk 0:02:58.5]} 3. Bc4 {[%clk 0:03:00.7]} 3... Bc5 {[%clk
0:02:57.7]} 4. d3 {[%clk 0:03:00.7]} 4... d6 {[%clk 0:02:48.2]} 5. a4 {[%clk
0:03:00.8]} 5... a6 {[%clk 0:02:47.5]} 6. O-O {[%clk 0:02:59.9]} 6... h6 {[%clk
0:02:46.9]} 7. Be3 {[%clk 0:03:00]} 7... Ba7 {[%clk 0:02:41.7]} 8. Bxa7 {[%clk
0:02:59.4]} 8... Nxa7 {[%clk 0:02:39]} 9. c3 {[%clk 0:03:00.3]} 9... Nc6 {[%clk
0:02:32.3]} 10. Re1 {[%clk 0:02:38.2]} 10... Nf6 {[%clk 0:02:31.3]} 11. a5
{[%clk 0:02:34.9]} 11... O-O {[%clk 0:02:28.6]} 12. h3 {[%clk 0:02:35.1]} 12...
Ne7 {[%clk 0:02:20.1]} 13. d4 {[%clk 0:02:23.3]} 13... Ng6 {[%clk 0:02:15.3]}
14. Nbd2 {[%clk 0:02:15.1]} 14... Qe7 {[%clk 0:02:03.4]} 15. Nf1 {[%clk
0:02:08.2]} 15... Be6 {[%clk 0:01:53.5]} 16. Qb3 {[%clk 0:02:06.6]} 16... Bxc4
{[%clk 0:01:51.8]} 17. Qxc4 {[%clk 0:02:07.5]} 17... Nf4 {[%clk 0:01:42.5]} 18.
Ng3 {[%clk 0:02:03.8]} 18... N6h5 {[%clk 0:01:11.3]} 19. Nf5 {[%clk 0:01:53.1]}
19... Qf6 {[%clk 0:01:10.8]} 20. dxe5 {[%clk 0:01:49.6]} 20... dxe5 {[%clk
0:01:06.1]} 21. Rad1 {[%clk 0:01:46.1]} 21... Rad8 {[%clk 0:00:58.6]} 22. Qc5
{[%clk 0:01:36.9]} 22... Rxd1 {[%clk 0:00:56.5]} 23. Rxd1 {[%clk 0:01:36.9]}
23... Re8 {[%clk 0:00:48.6]} 24. Qxc7 {[%clk 0:01:25.3]} 24... Qg6 {[%clk
0:00:35.8]} 25. N5h4 {[%clk 0:01:13.8]} 25... Qxe4 {[%clk 0:00:35.3]} 26. Re1
{[%clk 0:01:06.7]} 26... Ne2+ {[%clk 0:00:28.3]} 27. Kf1 {[%clk 0:01:01]} 27...
Nhf4 {[%clk 0:00:28.5]} 28. Qd7 {[%clk 0:00:47.5]} 28... Re6 {[%clk 0:00:24]}
29. Qd2 {[%clk 0:00:44.6]} 29... Qc4 {[%clk 0:00:14.4]} 30. Rxe2 {[%clk
0:00:41.8]} 30... Nxe2 {[%clk 0:00:14.1]} 31. Qxe2 {[%clk 0:00:42.4]} 31... Qa2
{[%clk 0:00:13.1]} 32. Kg1 {[%clk 0:00:40.2]} 32... Qxa5 {[%clk 0:00:12]} 33.
Nf5 {[%clk 0:00:38.5]} 33... Qb6 {[%clk 0:00:09.9]} 34. Ne3 {[%clk 0:00:37.3]}
34... e4 {[%clk 0:00:09.3]} 35. Nd4 {[%clk 0:00:37.3]} 35... Rg6 {[%clk
0:00:08.6]} 36. Nef5 {[%clk 0:00:29.6]} 36... Qd8 {[%clk 0:00:08.1]} 37. Qxe4
{[%clk 0:00:27.7]} 37... Qg5 {[%clk 0:00:08.2]} 38. Ne7+ {[%clk 0:00:27.2]}
38... Kh7 {[%clk 0:00:05.1]} 39. Nxg6 {[%clk 0:00:27.1]} 39... fxg6 {[%clk
0:00:05.8]} 40. Qe3 {[%clk 0:00:27.2]} 40... Qc5 {[%clk 0:00:05.6]} 41. b4
{[%clk 0:00:26.9]} 41... Qc4 {[%clk 0:00:05.2]} 42. g3 {[%clk 0:00:26.3]} 42...
b6 {[%clk 0:00:04.1]} 43. h4 {[%clk 0:00:26.7]} 43... a5 {[%clk 0:00:04.2]} 44.
bxa5 {[%clk 0:00:27.6]} 44... bxa5 {[%clk 0:00:03.5]} 45. h5 {[%clk 0:00:22.4]}
45... a4 {[%clk 0:00:03.3]} 46. hxg6+ {[%clk 0:00:22.6]} 46... Kxg6 {[%clk
0:00:03.7]} 47. Qe4+ {[%clk 0:00:22.2]} 47... Kf7 {[%clk 0:00:03.8]} 48. Qb7+
{[%clk 0:00:19.3]} 48... Kg8 {[%clk 0:00:02.9]} 49. Nf5 {[%clk 0:00:14.7]} 49...
Qxc3 {[%clk 0:00:02.2]} 50. Qa8+ {[%clk 0:00:13.2]} 50... Kh7 {[%clk 0:00:02.3]}
51. Qxa4 {[%clk 0:00:12.9]} 51... Qc1+ {[%clk 0:00:02.2]} 52. Kh2 {[%clk
0:00:12.5]} 52... Qg5 {[%clk 0:00:02.6]} 53. Qf4 {[%clk 0:00:12.5]} 53... Qh5+
{[%clk 0:00:02.6]} 54. Kg2 {[%clk 0:00:12.4]} 54... Qf7 {[%clk 0:00:02]} 55. Qf3
{[%clk 0:00:11.8]} 55... g6 {[%clk 0:00:01.6]} 56. Ne3 {[%clk 0:00:12.3]} 56...
Qd7 {[%clk 0:00:01.6]} 57. Qd5 {[%clk 0:00:12.6]} 57... Qe7 {[%clk 0:00:01.5]}
58. Qf3 {[%clk 0:00:10.8]} 58... Qd7 {[%clk 0:00:01.4]} 59. Nd5 {[%clk
0:00:10.8]} 1-0

[Event "Late-Titled-Tuesday-Blitz-February-06-2024"]
[Site "Chess.com"]
[Date "2024.02.06"]
[Round "5"]
[White "Baronessa08"]
[Black "Dzidzik2203"]
[Result "1-0"]
[WhiteElo "2528"]
[BlackElo "2377"]
[TimeControl "180+1"]
[EndTime "14:56:12 PST"]
[Termination "Baronessa08 won by resignation"]

1. e4 {[%clk 0:03:00.9]} 1... c5 {[%clk 0:02:59]} 2. Nc3 {[%clk 0:02:57.2]} 2...
d6 {[%clk 0:02:54.5]} 3. g3 {[%clk 0:02:55.5]} 3... g6 {[%clk 0:02:46.3]} 4. Bg2
{[%clk 0:02:54.9]} 4... Bg7 {[%clk 0:02:46.7]} 5. f4 {[%clk 0:02:54.7]} 5... Nc6
{[%clk 0:02:47]} 6. Nf3 {[%clk 0:02:54.3]} 6... Rb8 {[%clk 0:02:46.9]} 7. O-O
{[%clk 0:02:53.7]} 7... b5 {[%clk 0:02:47.4]} 8. a3 {[%clk 0:02:51.6]} 8... a5
{[%clk 0:02:45.7]} 9. d3 {[%clk 0:02:51.6]} 9... b4 {[%clk 0:02:45.7]} 10. axb4
{[%clk 0:02:52]} 10... axb4 {[%clk 0:02:46.6]} 11. Ne2 {[%clk 0:02:50.2]} 11...
e6 {[%clk 0:02:46.8]} 12. Kh1 {[%clk 0:02:43.5]} 12... Nge7 {[%clk 0:02:46.5]}
13. d4 {[%clk 0:02:43.3]} 13... cxd4 {[%clk 0:02:39.3]} 14. Nexd4 {[%clk
0:02:41.2]} 14... O-O {[%clk 0:02:38.2]} 15. Be3 {[%clk 0:02:39.2]} 15... Bb7
{[%clk 0:02:10.2]} 16. Nxc6 {[%clk 0:02:33.2]} 16... Bxc6 {[%clk 0:02:03.9]} 17.
Nd4 {[%clk 0:02:32]} 17... Bb7 {[%clk 0:01:48.8]} 18. Qd3 {[%clk 0:02:27.8]}
18... d5 {[%clk 0:01:18]} 19. e5 {[%clk 0:02:21.5]} 19... Ra8 {[%clk 0:01:11]}
20. Qb5 {[%clk 0:02:01]} 20... Qc7 {[%clk 0:01:00.3]} 21. Qxb4 {[%clk
0:01:50.4]} 21... Nc6 {[%clk 0:00:58.7]} 22. Qc5 {[%clk 0:01:45.3]} 22... Rxa1
{[%clk 0:00:39.4]} 23. Rxa1 {[%clk 0:01:44.3]} 23... Rc8 {[%clk 0:00:37.1]} 24.
Nb5 {[%clk 0:01:41]} 24... Qd7 {[%clk 0:00:34.6]} 25. Nd6 {[%clk 0:01:35.8]}
25... Bf8 {[%clk 0:00:33.4]} 26. Qb5 {[%clk 0:01:16.4]} 26... Bxd6 {[%clk
0:00:17.5]} 27. exd6 {[%clk 0:01:16.4]} 27... Rb8 {[%clk 0:00:18.2]} 28. Qc5
{[%clk 0:00:47]} 28... d4 {[%clk 0:00:14.2]} 29. Bf2 {[%clk 0:00:45.9]} 29...
Rd8 {[%clk 0:00:12.5]} 30. b4 {[%clk 0:00:38.2]} 30... Qxd6 {[%clk 0:00:11.6]}
31. Qxd6 {[%clk 0:00:32.4]} 31... Rxd6 {[%clk 0:00:12.5]} 32. b5 {[%clk
0:00:20.3]} 32... Nd8 {[%clk 0:00:12.4]} 33. Ra7 {[%clk 0:00:12]} 33... Bxg2+
{[%clk 0:00:11.5]} 34. Kxg2 {[%clk 0:00:12.9]} 34... Kf8 {[%clk 0:00:09.3]} 35.
Ra6 {[%clk 0:00:11.6]} 35... Rd5 {[%clk 0:00:07.5]} 36. b6 {[%clk 0:00:12]}
36... Ke7 {[%clk 0:00:07.8]} 37. Ra7+ {[%clk 0:00:11.5]} 37... Rd7 {[%clk
0:00:07.9]} 38. Bxd4 {[%clk 0:00:11.5]} 38... Nb7 {[%clk 0:00:06.9]} 39. c3
{[%clk 0:00:11.3]} 39... Kd6 {[%clk 0:00:07.3]} 40. Kf3 {[%clk 0:00:11.1]} 40...
Kc6 {[%clk 0:00:07.7]} 41. Ke4 {[%clk 0:00:11]} 41... Rd5 {[%clk 0:00:08.1]} 42.
Ra8 {[%clk 0:00:10.1]} 42... f5+ {[%clk 0:00:05.9]} 43. Ke3 {[%clk 0:00:10.4]}
43... Kb5 {[%clk 0:00:06.1]} 44. Rb8 {[%clk 0:00:10.1]} 44... Ka6 {[%clk
0:00:05.7]} 45. Rc8 {[%clk 0:00:09.9]} 45... Rd6 {[%clk 0:00:04.8]} 46. Rc7
{[%clk 0:00:10.2]} 46... Rd5 {[%clk 0:00:02.7]} 47. Rxh7 {[%clk 0:00:10.1]}
47... Rb5 {[%clk 0:00:03]} 48. Re7 {[%clk 0:00:09.8]} 48... Na5 {[%clk
0:00:01.1]} 49. Rxe6 {[%clk 0:00:09.4]} 49... Nc4+ {[%clk 0:00:01.3]} 50. Kd3
{[%clk 0:00:09.9]} 50... Na3 {[%clk 0:00:01.8]} 51. Rxg6 {[%clk 0:00:09]} 51...
Rb1 {[%clk 0:00:02.1]} 52. g4 {[%clk 0:00:08.3]} 52... Rd1+ {[%clk 0:00:02.3]}
53. Ke2 {[%clk 0:00:08.6]} 53... Rh1 {[%clk 0:00:02.4]} 54. gxf5 {[%clk
0:00:08.4]} 54... Rxh2+ {[%clk 0:00:03.3]} 55. Kf3 {[%clk 0:00:08.4]} 55... Rh3+
{[%clk 0:00:03.4]} 56. Rg3 {[%clk 0:00:08.2]} 56... Rh1 {[%clk 0:00:03.7]} 57.
f6 {[%clk 0:00:08.4]} 57... Nc4 {[%clk 0:00:04.1]} 58. f7 {[%clk 0:00:08.4]}
58... Nd2+ {[%clk 0:00:05]} 59. Kg2 {[%clk 0:00:08.3]} 59... Rh8 {[%clk
0:00:04.5]} 60. Rg8 {[%clk 0:00:08]} 60... Rh7 {[%clk 0:00:04.4]} 61. f8=Q
{[%clk 0:00:08.3]} 1-0

[Event "Late-Titled-Tuesday-Blitz-February-06-2024"]
[Site "Chess.com"]
[Date "2024.02.06"]
[Round "5"]
[White "tptagain"]
[Black "grzechu96"]
[Result "1/2-1/2"]
[WhiteElo "2946"]
[BlackElo "2748"]
[TimeControl "180+1"]
[EndTime "14:56:19 PST"]
[Termination "Game drawn - insufficient material"]

1. Nf3 {[%clk 0:03:00.9]} 1... d5 {[%clk 0:03:00.2]} 2. c4 {[%clk 0:03:00.8]}
2... c6 {[%clk 0:03:00.3]} 3. e3 {[%clk 0:03:01]} 3... Nf6 {[%clk 0:03:00.6]} 4.
Nc3 {[%clk 0:03:01.6]} 4... e6 {[%clk 0:03:01]} 5. b3 {[%clk 0:03:02.1]} 5...
Bd6 {[%clk 0:03:00.2]} 6. Bb2 {[%clk 0:03:02.4]} 6... O-O {[%clk 0:03:00.3]} 7.
d4 {[%clk 0:03:02.5]} 7... Nbd7 {[%clk 0:03:00.1]} 8. Bd3 {[%clk 0:03:02.7]}
8... e5 {[%clk 0:02:49.6]} 9. cxd5 {[%clk 0:02:54.1]} 9... cxd5 {[%clk
0:02:47.7]} 10. dxe5 {[%clk 0:02:54.1]} 10... Nxe5 {[%clk 0:02:48.5]} 11. Be2
{[%clk 0:02:54.2]} 11... Nxf3+ {[%clk 0:02:26.9]} 12. Bxf3 {[%clk 0:02:53.7]}
12... Be5 {[%clk 0:02:27.6]} 13. Qd2 {[%clk 0:02:41]} 13... Re8 {[%clk
0:01:46.1]} 14. Ne2 {[%clk 0:02:19.8]} 14... Bxb2 {[%clk 0:01:06.4]} 15. Qxb2
{[%clk 0:02:20.7]} 15... Bf5 {[%clk 0:01:06.7]} 16. O-O {[%clk 0:02:10.4]} 16...
Be4 {[%clk 0:01:06.9]} 17. Nd4 {[%clk 0:02:10.7]} 17... Rc8 {[%clk 0:01:05.5]}
18. Rac1 {[%clk 0:02:06.3]} 18... Qd7 {[%clk 0:00:42.1]} 19. Be2 {[%clk
0:02:01.1]} 19... a6 {[%clk 0:00:39.8]} 20. b4 {[%clk 0:02:01]} 20... Rxc1
{[%clk 0:00:19.8]} 21. Rxc1 {[%clk 0:02:01.9]} 21... Rc8 {[%clk 0:00:19.8]} 22.
Rc3 {[%clk 0:01:42]} 22... Ne8 {[%clk 0:00:14.9]} 23. Rc5 {[%clk 0:01:37.7]}
23... Nd6 {[%clk 0:00:10.1]} 24. Qc3 {[%clk 0:01:32.7]} 24... h6 {[%clk
0:00:05]} 25. h3 {[%clk 0:01:26.6]} 25... Rxc5 {[%clk 0:00:02.8]} 26. bxc5
{[%clk 0:01:26.2]} 26... Qc7 {[%clk 0:00:02.7]} 27. Qb4 {[%clk 0:00:40.1]} 27...
Nc8 {[%clk 0:00:02.8]} 28. a4 {[%clk 0:00:27.1]} 28... Ne7 {[%clk 0:00:02.7]}
29. Qb6 {[%clk 0:00:22.4]} 29... Qxb6 {[%clk 0:00:01.5]} 30. cxb6 {[%clk
0:00:23.3]} 30... Nc8 {[%clk 0:00:01.8]} 31. a5 {[%clk 0:00:20.5]} 31... Nd6
{[%clk 0:00:02.4]} 32. Nb3 {[%clk 0:00:18.7]} 32... Kf8 {[%clk 0:00:02.5]} 33.
Nc5 {[%clk 0:00:18.4]} 33... Ke7 {[%clk 0:00:02.7]} 34. Bxa6 {[%clk 0:00:08.6]}
34... bxa6 {[%clk 0:00:03.6]} 35. b7 {[%clk 0:00:09.3]} 35... Nxb7 {[%clk
0:00:03.4]} 36. Nxb7 {[%clk 0:00:10.2]} 36... d4 {[%clk 0:00:03.1]} 37. Nc5
{[%clk 0:00:10.1]} 37... d3 {[%clk 0:00:03.6]} 38. Kf1 {[%clk 0:00:10.4]} 38...
d2 {[%clk 0:00:03.4]} 39. Ke2 {[%clk 0:00:10.7]} 39... Bxg2 {[%clk 0:00:03.7]}
40. Kxd2 {[%clk 0:00:09.1]} 40... Bf1 {[%clk 0:00:03.6]} 41. h4 {[%clk
0:00:08.8]} 41... Kd6 {[%clk 0:00:03.9]} 42. Nb3 {[%clk 0:00:08.1]} 42... Kd5
{[%clk 0:00:03.9]} 43. Kc3 {[%clk 0:00:08.4]} 43... Ke4 {[%clk 0:00:04]} 44. Nd4
{[%clk 0:00:08.9]} 44... Bg2 {[%clk 0:00:02.1]} 45. Kd2 {[%clk 0:00:05.9]} 45...
Bf1 {[%clk 0:00:02.5]} 46. Kc3 {[%clk 0:00:06.1]} 46... g6 {[%clk 0:00:02.3]}
47. Kd2 {[%clk 0:00:05.8]} 47... h5 {[%clk 0:00:02.8]} 48. Ke1 {[%clk
0:00:04.3]} 48... Bc4 {[%clk 0:00:03]} 49. Kd2 {[%clk 0:00:04.7]} 49... f6
{[%clk 0:00:03.5]} 50. Ke1 {[%clk 0:00:04.1]} 50... g5 {[%clk 0:00:03.6]} 51.
hxg5 {[%clk 0:00:03.9]} 51... fxg5 {[%clk 0:00:04.5]} 52. Kd2 {[%clk 0:00:03.9]}
52... h4 {[%clk 0:00:04.4]} 53. f3+ {[%clk 0:00:04.6]} 53... Ke5 {[%clk
0:00:04.9]} 54. Ke1 {[%clk 0:00:05.1]} 54... Kd5 {[%clk 0:00:03.9]} 55. Kf2
{[%clk 0:00:05.3]} 55... Kc5 {[%clk 0:00:04.4]} 56. Nf5 {[%clk 0:00:04.7]} 56...
Kb4 {[%clk 0:00:04.3]} 57. f4 {[%clk 0:00:05.1]} 57... gxf4 {[%clk 0:00:04.3]}
58. exf4 {[%clk 0:00:05.6]} 58... h3 {[%clk 0:00:04.5]} 59. Kg3 {[%clk 0:00:06]}
59... Kxa5 {[%clk 0:00:04.9]} 60. Ne3 {[%clk 0:00:06.6]} 60... Be6 {[%clk
0:00:04.5]} 61. f5 {[%clk 0:00:07]} 61... Bf7 {[%clk 0:00:04.4]} 62. Ng4 {[%clk
0:00:07.6]} 62... Kb4 {[%clk 0:00:04.3]} 63. Ne5 {[%clk 0:00:08.3]} 63... Be8
{[%clk 0:00:04.6]} 64. f6 {[%clk 0:00:08.5]} 64... a5 {[%clk 0:00:05.2]} 65.
Nc6+ {[%clk 0:00:07.9]} 65... Kb5 {[%clk 0:00:04.8]} 66. Nxa5 {[%clk 0:00:08.5]}
66... Kxa5 {[%clk 0:00:05.6]} 67. Kxh3 {[%clk 0:00:09]} 67... Kb5 {[%clk
0:00:06.3]} 68. f7 {[%clk 0:00:09.5]} 68... Bxf7 {[%clk 0:00:06.6]} 1/2-1/2